fUSD/lending_fUSD_20250814
["ID","MTS","AMOUNT","RATE_DAILY","PERIOD"]
[379228005,1755198645235,-150.0,0.00026885,4]
[379228006,1755198645245,-10564.3598093,0.00026886,2]
[379228007,1755198645255,-150.0,0.00026887,4]
[379228008,1755198645264,-756.44377183,0.00026888,2]
[379228009,1755198645274,-201.56752728,0.00026889,2]
[379228010,1755198645285,-756.44377183,0.0002689,2]
[379228012,1755198645295,-10564.3598093,0.0002689,2]
[379228013,1755198645305,-150.0,0.00026892,4]
[379228015,1755198645315,-469.05,0.00026892,2]
[379228017,1755198645324,-925.41,0.00026892,2]
[379228022,1755198645462,-9940.44939196,0.00026896,2]
[379228023,1755198645472,-362.69838202,0.00026899,2]
[379228024,1755198645481,-170.61855441,0.000269,4]
[379228025,1755198645491,-415.30966174,0.000269,4]
[379228026,1755198645500,-245.74346372,0.000269,4]
[379228027,1755198645510,-2364.32486125,0.000269,2]
[379228028,1755198645519,-2364.32486107,0.000269,2]
[379228029,1755198645530,-2364.32486107,0.000269,2]
[379228030,1755198645539,-2364.32486107,0.000269,2]
[379228031,1755198645549,-2364.32486107,0.000269,2]
[379228032,1755198645558,-2364.32486107,0.000269,2]
[379228033,1755198645567,-2364.32486107,0.000269,2]
[379228034,1755198645578,-2364.32486107,0.000269,2]
[379228035,1755198645587,-2364.32486107,0.000269,2]
[379228036,1755198645597,-2364.32486107,0.000269,2]
[379228037,1755198645606,-2364.32486107,0.000269,2]
[379228038,1755198645616,-2364.32486107,0.000269,2]
[379228039,1755198645625,-2364.32486107,0.000269,2]
[379228040,1755198645634,-2364.32486107,0.000269,2]
[379228041,1755198645644,-150.0,0.00026901,4]
[379228042,1755198645654,-414.57250046,0.00026901,2]
[379228043,1755198645663,-150.0,0.00026905,4]
[379228044,1755198645672,-2364.32486107,0.00026911,2]
[379228045,1755198645681,-3183.75812453,0.00026912,2]
[379228046,1755198645690,-481.19765413,0.00026914,2]
[379228047,1755198645702,-150.0,0.00026914,4]
[379228049,1755198645711,-150.0,0.00026914,4]
[379228051,1755198645721,-150.0,0.00026914,4]
[379228053,1755198645730,-150.0,0.00026919,4]
[379228055,1755198645739,-877.68146115,0.0002692,2]
[379228057,1755198645748,-362.69838202,0.0002692,2]
[379228059,1755198645758,-877.68146115,0.00026921,2]
[379228061,1755198645767,-201.56752728,0.00026922,2]
[379228063,1755198645777,-414.57250046,0.00026923,2]
[379228065,1755198645786,-150.0,0.00026924,4]
[379228067,1755198645795,-170.61855441,0.00026928,4]
[379228069,1755198645804,-415.30966174,0.00026928,4]
[379228071,1755198645813,-245.74346372,0.00026928,4]
[379228073,1755198645823,-241.68208552,0.00026928,2]
[379228075,1755198645832,-150.0,0.0002693,4]
[379228076,1755198645842,-153.86329635,0.00026931,2]
[379228078,1755198645851,-241.68208552,0.00026934,2]
[379228080,1755198645860,-241.68208552,0.00026936,2]
[379228082,1755198645870,-241.68208552,0.00026937,2]
[379228084,1755198645880,-150.0,0.0002694,4]
[379228086,1755198645889,-150.0,0.00026942,4]
[379228088,1755198645898,-10564.3598093,0.00026943,2]
[379228090,1755198645907,-414.57250046,0.00026945,2]
[379228091,1755198645917,-362.69838202,0.00026945,2]
[379228092,1755198645929,-150.0,0.00026946,4]
[379228093,1755198645939,-481.19765413,0.00026948,2]
[379228094,1755198645948,-150.0,0.00026949,4]
[379228095,1755198645957,-150.0,0.00026949,4]
[379228096,1755198645967,-362.69838202,0.0002695,2]
[379228097,1755198645982,-414.57250046,0.00026951,2]
[379228098,1755198645992,-150.0,0.00026951,4]
[379228099,1755198646000,-9940.44939196,0.00026953,2]
[379228100,1755198646012,-241.68208552,0.00026955,2]
[379228101,1755198646023,-170.61855441,0.00026955,4]
[379228102,1755198646032,-415.30966174,0.00026955,4]
[379228103,1755198646042,-245.74346372,0.00026955,4]
[379228104,1755198646052,-150.0,0.00026956,4]
[379228105,1755198646062,-150.0,0.00026957,4]
[379228106,1755198646071,-756.44377183,0.00026957,2]
[379228107,1755198646081,-150.0,0.00026959,2]
[379228108,1755198646092,-150.0,0.00026964,4]
[379228109,1755198646103,-173.23,0.00026968,2]
[379228110,1755198646114,-150.0,0.00026971,4]
[379228111,1755198646123,-756.44377183,0.00026971,2]
[379228112,1755198646134,-414.57250046,0.00026973,2]
[379228113,1755198646143,-241.68208552,0.00026976,2]
[379228114,1755198646153,-150.0,0.00026979,4]
[379228115,1755198646162,-150.0,0.00026979,4]
[379228116,1755198646171,-150.0,0.00026979,4]
[379228117,1755198646180,-877.68146115,0.0002698,2]
[379228118,1755198646191,-170.61855441,0.00026983,4]
[379228119,1755198646201,-415.30966174,0.00026983,4]
[379228120,1755198646211,-245.74346372,0.00026983,4]
[379228121,1755198646220,-150.0,0.00026983,4]
[379228122,1755198646229,-414.57250046,0.00026988,2]
[379228123,1755198646238,-150.0,0.00026988,4]
[379228124,1755198646247,-877.68146115,0.00026989,2]
[379228125,1755198646256,-2364.32486107,0.00026989,2]
[379228126,1755198646265,-10564.3598093,0.0002699,2]
[379228127,1755198646275,-481.19765413,0.00026992,2]
[379228128,1755198646284,-184.44,0.00026993,2]
[379228129,1755198646293,-201.56752728,0.00026994,2]
[379228130,1755198646303,-201.56752728,0.00026994,2]
[379228131,1755198646313,-362.69838202,0.00026998,2]
[379228132,1755198646322,-150.0,0.00026999,4]
[379228133,1755198646331,-2000.0,0.00027,2]
[379228134,1755198646340,-2000.0,0.00027,2]
[379228135,1755198646349,-2000.0,0.00027,2]
[379228136,1755198646358,-2000.0,0.00027,2]
[379228137,1755198646367,-250.0,0.00027,2]
[379228138,1755198646378,-3599.99999901,0.00027,30]
[379228139,1755198646387,-153.86329635,0.00027003,2]
[379228140,1755198646396,-248.66625402,0.00027005,2]
[379228141,1755198646406,-5000.0,0.00027005,2]
[379228142,1755198646415,-150.0,0.00027008,4]
[379228143,1755198646424,-21128.7196187,0.0002701,2]
[379228144,1755198646433,-9940.44939196,0.0002701,2]
[379228145,1755198646442,-170.61855441,0.0002701,4]
[379228146,1755198646451,-415.30966174,0.0002701,4]
[379228147,1755198646461,-245.74346372,0.0002701,4]
[379228148,1755198646470,-150.0,0.00027011,4]
[379228149,1755198646479,-685.71814029,0.00027015,2]
[379228150,1755198646488,-150.0,0.00027015,4]
[379228151,1755198646497,-150.0,0.00027016,4]
[379228152,1755198646506,-150.0,0.00027018,4]
[379228153,1755198646515,-150.0,0.0002702,4]
[379228154,1755198646525,-34532.0512,0.0002702,2]
[379228155,1755198646534,-150.0,0.00027028,4]
[379228156,1755198646543,-150.0,0.00027028,4]
[379228157,1755198646553,-170.61855441,0.00027038,4]
[379228158,1755198646562,-415.30966174,0.00027038,4]
[379228159,1755198646571,-245.74346372,0.00027038,4]
[379228160,1755198646580,-150.0,0.00027044,4]
[379228161,1755198646589,-150.0,0.00027048,4]
[379228162,1755198646598,-150.0,0.00027052,4]
[379228163,1755198646608,-150.0,0.00027056,4]
[379228164,1755198646616,-150.0,0.00027057,4]
[379228165,1755198646626,-10564.3598093,0.00027058,2]
[379228166,1755198646635,-1000.0,0.0002706,2]
[379228167,1755198646644,-150.0,0.0002706,4]
[379228168,1755198646653,-2364.32486107,0.00027066,2]
[379228169,1755198646663,-170.61855441,0.00027066,4]
[379228170,1755198646672,-415.30966174,0.00027066,4]
[379228171,1755198646681,-245.74346372,0.00027066,4]
[379228172,1755198646690,-150.0,0.00027066,4]
[379228173,1755198646700,-150.0,0.00027066,4]
[379228174,1755198646709,-9940.44939196,0.00027068,2]
[379228175,1755198646719,-167.79431171,0.00027073,2]
[379228176,1755198646728,-153.86329635,0.00027075,2]
[379228177,1755198646737,-150.0,0.00027077,4]
[379228178,1755198646746,-150.0,0.00027077,4]
[379228179,1755198646756,-150.0,0.0002708,4]
[379228180,1755198646765,-248.666254,0.00027082,2]
[379228181,1755198646775,-150.0,0.00027083,4]
[379228182,1755198646784,-150.0,0.00027085,4]
[379228183,1755198646793,-21128.7196187,0.00027085,2]
[379228184,1755198646802,-170.61855441,0.00027093,4]
[379228185,1755198646812,-415.30966174,0.00027093,4]
[379228186,1755198646822,-245.74346372,0.00027093,4]
[379228187,1755198646831,-42257.4392374,0.00027095,2]
[379228188,1755198646840,-7107.46275255,0.00027095,2]
[379228189,1755198646849,-150.0,0.00027096,4]
[379228190,1755198646859,-150.0,0.00027096,4]
[379228191,1755198646868,-23885.59,0.00027097,14]
[379228192,1755198646879,-71049.24,0.00027097,14]
[379228193,1755198646894,-26200.67,0.00027097,14]
[379228194,1755198646904,-11954.93,0.00027097,14]
[379228195,1755198646914,-7107.46275255,0.00027099,2]
[379228196,1755198646923,-1000.0,0.000271,2]
[379228197,1755198646938,-3905.67,0.000271,2]
[379228198,1755198646948,-3183.75812453,0.00027105,2]
[379228199,1755198646957,-95079.2382841,0.00027105,2]
[379228200,1755198646967,-92397.0157831,0.00027105,2]
[379228201,1755198646976,-685.71814027,0.00027108,2]
[379228202,1755198646985,-150.0,0.00027109,4]
[379228203,1755198646994,-10564.3598093,0.00027111,2]
[379228204,1755198647005,-5138.24603501,0.00027111,2]
[379228205,1755198648170,-1969.21671754,0.00027111,2]
[379228206,1755198648179,-150.0,0.00027112,4]
[379228207,1755198648189,-150.0,0.00027112,4]
[379228208,1755198648198,-150.0,0.00027113,4]
[379228209,1755198648207,-1758.33535626,0.00027115,2]
[379228210,1755198648218,-15825.3167371,0.00027115,2]
[379228211,1755198649023,-717.0,0.00025885,2]
[379228212,1755198649034,-1213.76245179,0.00027115,2]
[379228213,1755198649053,-409.25238473,0.00027115,2]
[379228214,1755198649064,-171103.46307012,0.00027115,2]
[379228215,1755198649074,-150.0,0.00027115,4]
[379228216,1755198649084,-150.0,0.00027116,4]
[379228217,1755198649095,-170.61855441,0.00027121,4]
[379228218,1755198649104,-415.30966174,0.00027121,4]
[379228219,1755198649115,-245.74346372,0.00027121,4]
[379228220,1755198649125,-600.0,0.00027122,2]
[379228221,1755198649135,-151.0,0.00027122,2]
[379228222,1755198649145,-2081.85,0.00027123,14]
[379228223,1755198649155,-9940.44939196,0.00027125,2]
[379228224,1755198649166,-150.0,0.00027125,4]
[379228225,1755198649176,-262.12898365,0.0002713,2]
[379228226,1755198649187,-932.0,0.0002713,2]
[379228227,1755198649196,-150.0,0.00027135,4]
[379228228,1755198649207,-659.0,0.00027137,2]
[379228229,1755198649217,-150.0,0.00027142,4]
[379228230,1755198649226,-150.0,0.00027142,4]
[379228231,1755198649235,-2364.32486107,0.00027143,2]
[379228232,1755198649245,-150.0,0.00027144,4]
[379228233,1755198649254,-153.86329635,0.00027146,2]
[379228234,1755198649264,-150.0,0.00027147,4]
[379228235,1755198649273,-170.61855441,0.00027149,4]
[379228236,1755198649283,-415.30966174,0.00027149,4]
[379228237,1755198649292,-245.74346372,0.00027149,4]
[379228238,1755198649301,-7107.46275255,0.00027157,2]
[379228239,1755198649311,-248.666254,0.00027158,2]
[379228240,1755198649321,-150.0,0.00027159,4]
[379228241,1755198649330,-150.0,0.00027159,4]
[379228242,1755198649340,-150.0,0.00027163,4]
[379228243,1755198649349,-10564.3598093,0.00027164,2]
[379228244,1755198649359,-7107.46275255,0.00027167,2]
[379228245,1755198649369,-150.0,0.00027167,4]
[379228246,1755198649378,-150.0,0.0002717,4]
[379228247,1755198649388,-10564.3598093,0.00027174,2]
[379228248,1755198649397,-7107.46275255,0.00027174,2]
[379228249,1755198649406,-150.0,0.00027174,4]
[379228250,1755198649416,-150.0,0.00027174,4]
[379228251,1755198649426,-150.0,0.00027174,4]
[379228252,1755198649435,-170.61855441,0.00027176,4]
[379228253,1755198649445,-415.30966174,0.00027176,4]
[379228254,1755198649454,-245.74346372,0.00027176,4]
[379228255,1755198649464,-150.0,0.00027177,4]
[379228256,1755198649474,-200.0,0.00027178,2]
[379228257,1755198649483,-150.0,0.00027179,4]
[379228258,1755198649492,-9940.44939196,0.00027182,2]
[379228259,1755198649501,-12452.994,0.00027184,15]
[379228260,1755198649513,-559.209,0.00027184,15]
[379228261,1755198649522,-453.0,0.00027185,7]
[379228262,1755198649532,-150.0,0.00027199,4]
[379228263,1755198649541,-1000.0,0.000272,2]
[379228264,1755198649550,-685.71814027,0.000272,2]
[379228265,1755198649559,-170.61855441,0.00027204,4]
[379228266,1755198649569,-415.30966174,0.00027204,4]
[379228267,1755198649578,-245.74346372,0.00027204,4]
[379228268,1755198649587,-150.0,0.00027207,4]
[379228269,1755198649596,-150.0,0.00027209,4]
[379228270,1755198649606,-150.0,0.00027211,4]
[379228271,1755198649616,-150.0,0.00027213,4]
[379228272,1755198649626,-150.0,0.00027215,4]
[379228273,1755198649636,-150.0,0.00027218,4]
[379228274,1755198649645,-153.86329635,0.00027218,2]
[379228275,1755198649654,-2364.32486107,0.0002722,2]
[379228276,1755198649664,-150.0,0.00027223,4]
[379228277,1755198649674,-7107.46275255,0.00027225,2]
[379228278,1755198649684,-195.02203013,0.00027225,2]
[379228279,1755198649693,-150.0,0.00027227,4]
[379228280,1755198649702,-7107.46275255,0.0002723,2]
[379228281,1755198649712,-170.61855441,0.00027232,4]
[379228282,1755198649721,-415.30966174,0.00027232,4]
[379228283,1755198649731,-245.74346372,0.00027232,4]
[379228284,1755198649740,-14214.9255051,0.00027234,2]
[379228285,1755198649749,-150.0,0.0002724,4]
[379228286,1755198649758,-9940.44939196,0.0002724,2]
[379228287,1755198649767,-7107.46275255,0.0002724,2]
[379228288,1755198649778,-150.0,0.00027241,4]
[379228289,1755198649787,-150.0,0.00027243,4]
[379228290,1755198649796,-21322.3882577,0.00027245,2]
[379228291,1755198649805,-150.0,0.00027253,4]
[379228292,1755198649815,-415.0,0.00027254,2]
[379228293,1755198649825,-150.0,0.00027254,2]
[379228294,1755198649834,-281.194,0.00027254,2]
[379228295,1755198649845,-195.066,0.00027254,2]
[379228296,1755198649855,-151.0,0.00027254,2]
[379228297,1755198649866,-195.43,0.00027254,2]
[379228298,1755198649877,-202.807,0.00027254,2]
[379228299,1755198649888,-250.0,0.00027254,2]
[379228300,1755198649898,-150.126,0.00027254,2]
[379228301,1755198649911,-150.0,0.00027254,2]
[379228302,1755198649923,-204.761,0.00027254,2]
[379228303,1755198649937,-150.0,0.00027254,2]
[379228304,1755198649947,-150.0,0.00027254,2]
[379228305,1755198649957,-205.468,0.00027254,2]
[379228306,1755198649967,-157.247,0.00027254,2]
[379228307,1755198649976,-3369.0,0.00027254,2]
[379228308,1755198649987,-927.0,0.00027254,2]
[379228309,1755198649998,-2039.73,0.00027254,2]
[379228310,1755198650010,-1254.0,0.00027254,2]
[379228311,1755198650021,-1655.0,0.00027254,2]
[379228312,1755198650032,-565.0,0.00027254,2]
[379228313,1755198650042,-1296.0,0.00027254,2]
[379228314,1755198650052,-642.708,0.00027254,2]
[379228315,1755198650061,-1172.0,0.00027254,2]
[379228316,1755198650071,-893.0,0.00027254,2]
[379228317,1755198650081,-150.0,0.00027256,4]
[379228318,1755198650090,-415.0,0.00027258,2]
[379228319,1755198650100,-170.61855441,0.00027259,4]
[379228320,1755198650109,-415.30966174,0.00027259,4]
[379228321,1755198650119,-245.74346372,0.00027259,4]
[379228322,1755198650128,-415.0,0.00027259,2]
[379228323,1755198650137,-150.82,0.0002726,2]
[379228324,1755198650147,-150.0,0.0002726,2]
[379228325,1755198650156,-150.0,0.00027267,4]
[379228326,1755198650166,-150.0,0.00027268,4]
[379228327,1755198650175,-150.0,0.00027272,4]
[379228328,1755198650185,-150.0,0.00027272,4]
[379228329,1755198650194,-150.0,0.00027273,4]
[379228330,1755198650203,-150.0,0.00027274,4]
[379228331,1755198650213,-7107.46275255,0.00027277,2]
[379228332,1755198650222,-157.92396702,0.0002728,2]
[379228333,1755198650231,-256.16541537,0.00027283,2]
[379228334,1755198650241,-150.0,0.00027284,4]
[379228335,1755198650250,-170.61855441,0.00027287,4]
[379228336,1755198650260,-415.30966174,0.00027287,4]
[379228337,1755198650269,-245.74346372,0.00027287,4]
[379228338,1755198650279,-9476.38604476,0.00027287,2]
[379228339,1755198650293,-2663.18401977,0.00027287,2]
[379228340,1755198652526,-172.42580627,0.00021262,2]
[379228341,1755198652536,-158.52196426,0.00021262,2]
[379228342,1755198652549,-341.47803574,0.00021262,2]
[379228343,1755198652559,-224.01023976,0.00021262,2]
[379228344,1755198652568,-552.02618996,0.00021262,2]
[379228345,1755198652578,-2075.35544057,0.00027287,2]
[379228346,1755198652588,-153.86329635,0.0002729,2]
[379228347,1755198652598,-150.0,0.00027292,4]
[379228348,1755198652608,-188.37307419,0.00027293,2]
[379228352,1755198911326,300.59050193,0.0003,120]
[379228353,1755198953391,160.0,0.00026228,120]
[379228354,1755199161346,203.1,0.00030137,120]
[379228355,1755199206804,160.0,0.00024957,120]
[379228356,1755199208058,160.0,0.00026204,120]
[379228358,1755199467681,150.86,0.00013699,2]
[379228359,1755199508899,24501.47,0.00019,2]
[379228360,1755199508935,13000.0,0.00019,2]
[379228362,1755199621517,1074.40259451,0.00018999,5]
[379228363,1755199655530,30353.82876012,0.00018,2]
[379228364,1755199693548,2144.0,0.00030137,120]
[379228365,1755199737608,3600.0,0.00026,30]
[379228366,1755199770387,1181.96662103,0.00018999,5]
[379228367,1755199770525,1181.96662103,0.00018999,5]
[379228368,1755199770620,3600.0,0.00026,30]
[379228369,1755199800977,7200.0,0.00030137,120]
[379228384,1755199831712,-152.25694371,0.000189,2]
[379228386,1755199831722,-235.08846444,0.000189,2]
[379228387,1755199831732,-1200.0,0.00018989,2]
[379228388,1755199831742,-795.73431848,0.0001899,2]
[379228389,1755199831841,-12788.94151477,0.0001899,2]
[379228390,1755199831851,-527.16,0.0001899,3]
[379228391,1755199831860,-623.67,0.0001899,3]
[379228392,1755199831869,-487.0,0.00018999,2]
[379228393,1755199831878,-353.83256821,0.00018999,2]
[379228394,1755199831888,-312.20117456,0.00018999,2]
[379228395,1755199831897,-500.0,0.00018999,2]
[379228396,1755199831907,-500.0,0.00018999,2]
[379228397,1755199831916,-379.48495781,0.00018999,2]
[379228398,1755199831926,-15847.69414715,0.00019,2]
[379228403,1755199833341,-619.1797,0.00019,2]
[379228404,1755199833354,-570.49721947,0.00019,2]
[379228405,1755199833390,-115903.36833634,0.00019,2]
[379228406,1755199833403,-105781.57594947,0.00019,2]
[379228407,1755199833415,-5315.18,0.00019,2]
[379228408,1755199833454,-426.06973445,0.00019,2]
[379228409,1755199833466,-461.93026555,0.00019,2]
[379228410,1755199833490,-1732.90600008,0.00019,2]
[379228411,1755199833566,-240286.6698179,0.00019,2]
[379228418,1755199837981,-144917.90077625,0.00019,2]
[379228419,1755199837992,-534453.89294434,0.00019,2]
[379228420,1755199838002,-300.0,0.00019346,2]
[379228421,1755199838011,-248.66625402,0.00019748,2]
[379228422,1755199838020,-152.25694364,0.00019848,2]
[379228423,1755199838030,-235.08846438,0.000201,2]
[379228424,1755199838039,-9146.92304216,0.00020751,2]
[379228425,1755199838049,-152.25694364,0.00020796,2]
[379228426,1755199838063,-1680.0,0.00020799,2]
[379228427,1755199838072,-540.51361597,0.00020851,2]
[379228428,1755199838082,-300.0,0.00020889,2]
[379228429,1755199838091,-300.0,0.00020889,2]
[379228430,1755199838101,-300.0,0.000209,2]
[379228431,1755199838111,-150.86,0.00020951,2]
[379228432,1755199838121,-304.65,0.00021262,2]
[379228433,1755199838130,-303.12,0.00021262,2]
[379228434,1755199838140,-235.08846438,0.00021299,2]
[379228435,1755199838149,-9146.9230421,0.00021478,2]
[379228436,1755199838159,-152.25694364,0.00021745,2]
[379228437,1755199838168,-9146.9230421,0.00022205,2]
[379228438,1755199838178,-248.666254,0.00022224,2]
[379228439,1755199838186,-164.75,0.00022236,2]
[379228440,1755199838196,-502.73683825,0.00022423,2]
[379228441,1755199838205,-268.36,0.00022581,2]
[379228442,1755199838214,-152.25694364,0.00022693,2]
[379228443,1755199838223,-1861.0,0.00022781,2]
[379228444,1755199838232,-9146.9230421,0.00022931,2]
[379228445,1755199838242,-161.67614014,0.0002311,2]
[379228446,1755199838253,-1181.96662104,0.00023387,10]
[379228447,1755199838264,-152.25694364,0.00023641,2]
[379228448,1755199838274,-9146.9230421,0.00023658,2]
[379228449,1755199838283,-1616.2290045,0.00024,7]
[379228450,1755199838292,-5539.83072263,0.00024,2]
[379228451,1755199838304,-1139.0,0.000242,2]
[379228452,1755199838314,-9146.9230421,0.00024385,2]
[379228453,1755199838323,-152.25694364,0.00024589,2]
[379228454,1755199838332,-1000.0,0.00024598,2]
[379228455,1755199838342,-150.0,0.00024633,2]
[379228456,1755199838352,-165.1817134,0.00024633,2]
[379228457,1755199838362,-150.0,0.00024633,2]
[379228458,1755199838371,-183.59795946,0.00024633,2]
[379228459,1755199838380,-150.0,0.00024633,2]
[379228460,1755199838389,-150.0,0.00024633,2]
[379228461,1755199838399,-150.0,0.00024633,2]
[379228462,1755199838408,-150.0,0.00024633,2]
[379228463,1755199838418,-251.6950105,0.00024633,2]
[379228464,1755199838427,-150.0,0.00024633,2]
[379228465,1755199838436,-150.0,0.00024633,2]
[379228466,1755199838446,-150.0,0.00024633,2]
[379228467,1755199838455,-150.0,0.00024633,2]
[379228468,1755199838464,-150.0,0.00024633,2]
[379228469,1755199838475,-150.0,0.00024633,2]
[379228470,1755199838484,-150.0,0.00024633,2]
[379228471,1755199838494,-154.12589506,0.00024633,2]
[379228472,1755199838503,-150.0,0.00024633,2]
[379228473,1755199838512,-248.666254,0.000247,2]
[379228474,1755199838522,-5064.90584439,0.000247,2]
[379228475,1755199838531,-150.0,0.00024718,4]
[379228476,1755199838540,-1094.4,0.00024722,2]
[379228477,1755199838550,-282.05315604,0.00024731,2]
[379228478,1755199838562,-150.0,0.00024785,4]
[379228479,1755199838571,-2660294.82453916,0.00024799,2]
[379228480,1755199838581,-49380.70932486,0.00024799,2]
[379228481,1755199838591,-303921.947669,0.000248,2]
[379228482,1755199838601,-150.0,0.00024804,4]
[379228483,1755199838611,-228.27,0.0002482,2]
[379228484,1755199838621,-6203.3,0.0002482,2]
[379228485,1755199838630,-1251.0,0.00024849,2]
[379228486,1755199838639,-2283.0,0.00024849,2]
[379228487,1755199838649,-150.0,0.00024889,4]
[379228488,1755199838658,-264164.208553,0.000249,2]
[379228489,1755199838668,-9915.12506105,0.000249,2]
[379228490,1755199838677,-150.0,0.00024907,4]
[379228491,1755199838686,-150.0,0.00024907,4]
[379228492,1755199838695,-150.0,0.00024937,4]
[379228493,1755199838704,-150.0,0.00024937,4]
[379228494,1755199838714,-150.0,0.00024937,4]
[379228495,1755199838723,-150.0,0.00024975,4]
[379228496,1755199838732,-150.0,0.00025024,4]
[379228497,1755199838742,-150.0,0.00025061,4]
[379228498,1755199838751,-500.0,0.00025068,2]
[379228499,1755199838760,-150.0,0.00025089,4]
[379228500,1755199838770,-150.0,0.00025089,4]
[379228501,1755199838779,-46965.0,0.000251,2]
[379228502,1755199838788,-9146.9230421,0.00025112,2]
[379228503,1755199838797,-1116.0,0.0002513,2]
[379228504,1755199838809,-150.0,0.00025146,4]
[379228505,1755199838819,-150.0,0.0002518,4]
[379228506,1755199838828,-150.0,0.0002518,4]
[379228507,1755199838838,-150.0,0.0002518,4]
[379228508,1755199838847,-5064.90584438,0.00025219,2]
[379228509,1755199838856,-150.0,0.00025232,4]
[379228510,1755199838866,-170.0,0.00025232,7]
[379228511,1755199838876,-150.0,0.00025241,4]
[379228512,1755199838885,-150.0,0.00025241,4]
[379228513,1755199838894,-150.0,0.00025241,4]
[379228514,1755199838903,-1000.0,0.00025279,2]
[379228515,1755199838913,-608.4,0.00025295,2]
[379228516,1755199838922,-379.94766,0.000253,2]
[379228517,1755199838931,-150.0,0.00025317,4]
[379228518,1755199838940,-150.0,0.00025393,4]
[379228519,1755199838950,-942.58708911,0.000254,2]
[379228520,1755199838959,-150.0,0.00025403,4]
[379228521,1755199838969,-304.44,0.00025406,2]
[379228522,1755199838978,-150.0,0.00025415,4]
[379228523,1755199838987,-1488.07947119,0.00025419,2]
[379228524,1755199838996,-246.09519603,0.00025419,2]
[379228525,1755199839006,-150.0,0.00025454,4]
[379228526,1755199839015,-150.0,0.00025454,4]
[379228527,1755199839024,-150.0,0.00025488,4]
[379228528,1755199839033,-5513.0,0.000255,3]
[379228529,1755199839042,-151.0,0.00025504,2]
[379228530,1755199839052,-151.0,0.00025504,2]
[379228531,1755199839063,-151.0,0.00025504,2]
[379228532,1755199839072,-151.0,0.00025504,2]
[379228533,1755199839082,-151.0,0.00025504,2]
[379228534,1755199839091,-151.0,0.00025504,2]
[379228535,1755199839100,-500.0,0.00025504,2]
[379228536,1755199839110,-151.0,0.00025504,2]
[379228537,1755199839120,-151.0,0.00025504,2]
[379228538,1755199839129,-151.0,0.00025504,2]
[379228539,1755199839138,-200.0,0.00025504,2]
[379228540,1755199839148,-12317.0545,0.00025519,2]
[379228541,1755199839157,-92249.9262,0.00025519,2]
[379228542,1755199839167,-1000.0,0.00025519,2]
[379228543,1755199839176,-152.25694364,0.00025538,2]
[379228544,1755199839186,-418.0,0.00025543,3]
[379228545,1755199839196,-150.0,0.00025545,4]
[379228546,1755199839205,-150.0,0.00025545,4]
[379228547,1755199839214,-150.0,0.00025545,4]
[379228548,1755199839223,-150.0,0.00025545,4]
[379228549,1755199839233,-150.0,0.00025545,4]
[379228550,1755199839243,-150.0,0.00025574,4]
[379228551,1755199839254,-1488.07947113,0.00025627,2]
[379228552,1755199839265,-150.0,0.00025659,4]
[379228553,1755199839274,-150.0,0.00025697,4]
[379228554,1755199839284,-150.0,0.00025728,4]
[379228555,1755199839294,-150.0,0.00025728,4]
[379228556,1755199839306,-150.0,0.00025728,4]
[379228557,1755199839316,-5064.90584438,0.00025739,2]
[379228558,1755199839325,-150.0,0.00025745,4]
[379228559,1755199839338,-228.27,0.00025751,2]
[379228560,1755199839348,-666.0,0.00025796,3]
[379228561,1755199839358,-150.0,0.00025806,4]
[379228562,1755199839367,-150.0,0.0002583,4]